lending/lending_fUSD_20260206
["ID","MTS","AMOUNT","RATE_DAILY","PERIOD"]
[404638997,1770369040984,-500.0,0.00015689,2]
[404638998,1770369040994,-228.280519,0.00015735,7]
[404638999,1770369041003,-260.163436,0.00015744,2]
[404639000,1770369041012,-260.163436,0.00015744,2]
[404639001,1770369041022,-260.163436,0.00015744,2]
[404639002,1770369041031,-260.163436,0.00015744,2]
[404639003,1770369041040,-505.46772774,0.00015744,2]
[404639004,1770369041050,-150.0,0.00015744,2]
[404639005,1770369041059,-500.0,0.00015744,2]
[404639006,1770369041069,-507.62213415,0.00015744,2]
[404639007,1770369041078,-200.0,0.00015744,2]
[404639008,1770369041091,-636.0,0.00015744,2]
[404639009,1770369041101,-715.0,0.00015744,2]
[404639010,1770369041110,-297.64699965,0.00015744,2]
[404639011,1770369041119,-692.0,0.00015744,2]
[404639012,1770369041128,-422.0,0.00015744,2]
[404639013,1770369041137,-500.0,0.00015744,2]
[404639014,1770369041147,-840.0,0.00015744,2]
[404639015,1770369041156,-500.0,0.00015744,2]
[404639016,1770369041165,-500.0,0.00015744,2]
[404639017,1770369041174,-1129.0,0.00015744,2]
[404639018,1770369041183,-500.0,0.00015744,2]
[404639019,1770369041193,-500.0,0.00015744,2]
[404639020,1770369041202,-547.0,0.00015744,2]
[404639021,1770369041212,-649.0,0.00015744,2]
[404639022,1770369041221,-754.0,0.00015744,2]
[404639023,1770369041230,-500.0,0.00015744,2]
[404639024,1770369041239,-1826.89,0.00015753,2]
[404639025,1770369041248,-2000.0,0.0001577,2]
[404639026,1770369041257,-250.0,0.00015799,2]
[404639027,1770369041266,-500.0,0.00015799,2]
[404639028,1770369041275,-200.0,0.00015799,2]
[404639029,1770369041285,-636.0,0.00015799,2]
[404639030,1770369041294,-715.0,0.00015799,2]
[404639031,1770369041303,-692.0,0.00015799,2]
[404639032,1770369041312,-422.0,0.00015799,2]
[404639033,1770369041322,-500.0,0.00015799,2]
[404639034,1770369041330,-840.0,0.00015799,2]
[404639035,1770369041339,-500.0,0.00015799,2]
[404639036,1770369041347,-500.0,0.00015799,2]
[404639037,1770369041357,-1129.0,0.00015799,2]
[404639038,1770369041366,-500.0,0.00015799,2]
[404639039,1770369041375,-500.0,0.00015799,2]
[404639040,1770369041385,-547.0,0.00015799,2]
[404639041,1770369041394,-649.0,0.00015799,2]
[404639042,1770369041403,-754.0,0.00015799,2]
[404639043,1770369041413,-500.0,0.00015799,2]
[404639044,1770369041422,-500.0,0.00015823,2]
[404639045,1770369041431,-427.995377,0.00015824,2]
[404639046,1770369041440,-427.995377,0.00015824,2]
[404639047,1770369041449,-427.995377,0.00015824,2]
[404639048,1770369041459,-427.995377,0.00015824,2]
[404639049,1770369041468,-151.0,0.00015824,2]
[404639050,1770369041477,-151.0,0.00015824,2]
[404639051,1770369041486,-151.0,0.00015824,2]
[404639052,1770369041495,-288.95336883,0.00015851,2]
[404639053,1770369041504,-500.0,0.00015854,2]
[404639054,1770369041514,-200.0,0.00015854,2]
[404639055,1770369041524,-636.0,0.00015854,2]
[404639056,1770369041533,-715.0,0.00015854,2]
[404639057,1770369041542,-692.0,0.00015854,2]
[404639058,1770369041551,-422.0,0.00015854,2]
[404639059,1770369041560,-500.0,0.00015854,2]
[404639060,1770369041570,-840.0,0.00015854,2]
[404639061,1770369041579,-500.0,0.00015854,2]
[404639062,1770369041588,-500.0,0.00015854,2]
[404639063,1770369041597,-1129.0,0.00015854,2]
[404639064,1770369041608,-500.0,0.00015854,2]
[404639065,1770369041618,-500.0,0.00015854,2]
[404639066,1770369041628,-547.0,0.00015854,2]
[404639067,1770369041638,-649.0,0.00015854,2]
[404639068,1770369041648,-754.0,0.00015854,2]
[404639069,1770369041657,-500.0,0.00015854,2]
[404639070,1770369041667,-2000.0,0.0001587,2]
[404639071,1770369041680,-1221.918362,0.00015908,2]
[404639072,1770369041691,-1221.918362,0.00015908,2]
[404639073,1770369041702,-1221.918362,0.00015908,2]
[404639074,1770369041712,-1221.918362,0.00015908,2]
[404639075,1770369041726,-500.0,0.00015909,2]
[404639076,1770369041737,-203.03555142,0.00015909,2]
[404639077,1770369041748,-636.0,0.00015909,2]
[404639078,1770369041758,-715.0,0.00015909,2]
[404639079,1770369041770,-692.0,0.00015909,2]
[404639080,1770369041780,-422.0,0.00015909,2]
[404639081,1770369041790,-500.0,0.00015909,2]
[404639082,1770369041801,-840.0,0.00015909,2]
[404639083,1770369041812,-500.0,0.00015909,2]
[404639084,1770369041831,-343.48328548,0.00015909,2]
[404639085,1770369041842,-1129.0,0.00015909,2]
[404639086,1770369041853,-500.0,0.00015909,2]
[404639087,1770369041862,-547.0,0.00015909,2]
[404639088,1770369041874,-500.0,0.00015909,2]
[404639089,1770369041885,-649.0,0.00015909,2]
[404639090,1770369041897,-754.0,0.00015909,2]
[404639091,1770369041908,-500.0,0.00015909,2]
[404639092,1770369041919,-500.0,0.00015963,2]
[404639093,1770369041935,-636.0,0.00015963,2]
[404639094,1770369041945,-715.0,0.00015963,2]
[404639095,1770369041955,-692.0,0.00015963,2]
[404639096,1770369041965,-422.0,0.00015963,2]
[404639097,1770369041974,-500.0,0.00015963,2]
[404639098,1770369041984,-840.0,0.00015963,2]
[404639099,1770369041994,-500.0,0.00015963,2]
[404639100,1770369042003,-1129.0,0.00015963,2]
[404639101,1770369042012,-607.44102237,0.00015963,2]
[404639102,1770369042023,-547.0,0.00015963,2]
[404639103,1770369042034,-500.0,0.00015963,2]
[404639104,1770369042044,-649.0,0.00015963,2]
[404639105,1770369042054,-754.0,0.00015963,2]
[404639106,1770369042063,-500.0,0.00015963,2]
[404639107,1770369042081,-2000.0,0.0001597,2]
[404639108,1770369042091,-194.0,0.00016,2]
[404639109,1770369042101,-226.239759,0.00016018,2]
[404639110,1770369042110,-226.239759,0.00016018,2]
[404639111,1770369042120,-226.239759,0.00016018,2]
[404639112,1770369042130,-226.239758,0.00016018,2]
[404639113,1770369042139,-252.721836,0.00016018,2]
[404639114,1770369042149,-252.721836,0.00016018,2]
[404639115,1770369042157,-151.0,0.00016018,2]
[404639116,1770369042167,-252.721836,0.00016018,2]
[404639117,1770369042176,-151.0,0.00016018,2]
[404639118,1770369042186,-252.721828,0.00016018,2]
[404639119,1770369042195,-531.52731537,0.00016018,2]
[404639120,1770369042206,-636.0,0.00016018,2]
[404639121,1770369042216,-715.0,0.00016018,2]
[404639122,1770369042226,-692.0,0.00016018,2]
[404639123,1770369042238,-422.0,0.00016018,2]
[404639124,1770369042248,-500.0,0.00016018,2]
[404639125,1770369042258,-840.0,0.00016018,2]
[404639126,1770369042268,-500.0,0.00016018,2]
[404639127,1770369042277,-1129.0,0.00016018,2]
[404639128,1770369042287,-500.0,0.00016018,2]
[404639129,1770369042296,-547.0,0.00016018,2]
[404639130,1770369042306,-649.0,0.00016018,2]
[404639131,1770369042322,-754.0,0.00016018,2]
[404639132,1770369042332,-500.0,0.00016018,2]
[404639133,1770369042342,-2000.0,0.0001607,2]
[404639134,1770369042354,-636.0,0.00016073,2]
[404639135,1770369042363,-715.0,0.00016073,2]
[404639136,1770369042373,-692.0,0.00016073,2]
[404639137,1770369042383,-422.0,0.00016073,2]
[404639138,1770369042392,-500.0,0.00016073,2]
[404639139,1770369042401,-840.0,0.00016073,2]
[404639140,1770369042411,-500.0,0.00016073,2]
[404639141,1770369042420,-1129.0,0.00016073,2]
[404639142,1770369042430,-500.0,0.00016073,2]
[404639143,1770369042441,-547.0,0.00016073,2]
[404639144,1770369042451,-649.0,0.00016073,2]
[404639145,1770369042460,-754.0,0.00016073,2]
[404639146,1770369042469,-500.0,0.00016073,2]
[404639147,1770369042479,-159.814738,0.00016073,2]
[404639148,1770369042489,-159.814738,0.00016073,2]
[404639149,1770369042498,-159.814738,0.00016073,2]
[404639150,1770369042508,-159.814728,0.00016073,2]
[404639151,1770369042517,-636.0,0.00016128,2]
[404639152,1770369042527,-715.0,0.00016128,2]
[404639153,1770369042537,-692.0,0.00016128,2]
[404639154,1770369042546,-422.0,0.00016128,2]
[404639155,1770369042556,-500.0,0.00016128,2]
[404639156,1770369042569,-840.0,0.00016128,2]
[404639157,1770369042579,-500.0,0.00016128,2]
[404639158,1770369042589,-1129.0,0.00016128,2]
[404639159,1770369042599,-547.0,0.00016128,2]
[404639160,1770369042609,-649.0,0.00016128,2]
[404639161,1770369042620,-500.0,0.00016128,2]
[404639162,1770369042792,-754.0,0.00016128,2]
[404639163,1770369042803,-500.0,0.00016128,2]
[404639164,1770369042812,-22811.5445102,0.00016128,2]
[404639165,1770369042826,-2000.0,0.0001617,2]
[404639166,1770369042835,-636.0,0.00016183,2]
[404639167,1770369042845,-715.0,0.00016183,2]
[404639168,1770369042856,-692.0,0.00016183,2]
[404639169,1770369042866,-422.0,0.00016183,2]
[404639170,1770369042876,-500.25270898,0.00016183,2]
[404639171,1770369042886,-840.0,0.00016183,2]
[404639172,1770369042897,-500.0,0.00016183,2]
[404639173,1770369042911,-1129.0,0.00016183,2]
[404639174,1770369042921,-547.0,0.00016183,2]
[404639175,1770369042930,-649.0,0.00016183,2]
[404639176,1770369042940,-500.0,0.00016183,2]
[404639177,1770369042950,-754.0,0.00016183,2]
[404639178,1770369042959,-500.0,0.00016183,2]
[404639179,1770369042968,-260.163436,0.00016237,2]
[404639180,1770369042977,-260.163436,0.00016237,2]
[404639181,1770369042987,-260.163436,0.00016237,2]
[404639182,1770369042996,-260.163441,0.00016237,2]
[404639183,1770369043006,-636.0,0.00016237,2]
[404639184,1770369043016,-715.0,0.00016237,2]
[404639185,1770369043026,-692.0,0.00016237,2]
[404639186,1770369043035,-422.0,0.00016237,2]
[404639187,1770369043045,-840.0,0.00016237,2]
[404639188,1770369043054,-500.0,0.00016237,2]
[404639189,1770369043066,-1129.0,0.00016237,2]
[404639190,1770369043079,-547.0,0.00016237,2]
[404639191,1770369043089,-649.0,0.00016237,2]
[404639192,1770369043099,-500.0,0.00016237,2]
[404639193,1770369043109,-754.0,0.00016237,2]
[404639194,1770369043118,-588.17361545,0.00016237,2]
[404639195,1770369043128,-636.0,0.00016292,2]
[404639196,1770369043138,-715.0,0.00016292,2]
[404639197,1770369043147,-692.0,0.00016292,2]
[404639198,1770369043157,-422.0,0.00016292,2]
[404639199,1770369043167,-840.0,0.00016292,2]
[404639200,1770369043176,-500.0,0.00016292,2]
[404639201,1770369043185,-1129.0,0.00016292,2]
[404639202,1770369043195,-547.0,0.00016292,2]
[404639203,1770369043204,-649.0,0.00016292,2]
[404639204,1770369043213,-500.0,0.00016292,2]
[404639206,1770369043222,-754.0,0.00016292,2]
[404639207,1770369043232,-200.0,0.0001634,2]
[404639208,1770369043241,-636.0,0.00016347,2]
[404639209,1770369043251,-715.0,0.00016347,2]
[404639210,1770369043260,-692.0,0.00016347,2]
[404639211,1770369043269,-422.0,0.00016347,2]
[404639212,1770369043279,-840.0,0.00016347,2]
[404639213,1770369043288,-500.0,0.00016347,2]
[404639214,1770369043297,-1129.0,0.00016347,2]
[404639215,1770369043307,-547.0,0.00016347,2]
[404639216,1770369043318,-649.0,0.00016347,2]
[404639217,1770369043328,-246.89022842,0.00016347,2]
[404639219,1770369043337,-754.0,0.00016347,2]
[404639221,1770369043347,-636.0,0.00016402,2]
[404639223,1770369043356,-715.0,0.00016402,2]
[404639224,1770369043366,-692.0,0.00016402,2]
[404639225,1770369043375,-422.0,0.00016402,2]
[404639226,1770369043385,-840.0,0.00016402,2]
[404639227,1770369043394,-315.89038343,0.00016402,2]
[404639228,1770369043403,-1129.0,0.00016402,2]
[404639229,1770369043412,-547.0,0.00016402,2]
[404639230,1770369043422,-649.0,0.00016402,2]
[404639231,1770369043431,-754.0,0.00016402,2]
[404639232,1770369043440,-1826.89,0.00016438,2]
[404639233,1770369043450,-151.0,0.00016438,2]
[404639234,1770369043459,-151.0,0.00016438,2]
[404639235,1770369043468,-151.0,0.00016438,2]
[404639236,1770369043478,-151.0,0.00016438,2]
[404639237,1770369043488,-151.0,0.00016438,2]
[404639238,1770369043498,-151.0,0.00016438,2]
[404639239,1770369043507,-151.0,0.00016438,2]
[404639240,1770369043517,-151.0,0.00016438,2]
[404639241,1770369043526,-151.0,0.00016438,2]
[404639242,1770369043536,-151.0,0.00016438,2]
[404639243,1770369043546,-151.0,0.00016438,2]
[404639244,1770369043556,-151.0,0.00016438,2]
[404639245,1770369043567,-151.0,0.00016438,2]
[404639246,1770369043577,-151.0,0.00016438,2]
[404639247,1770369043586,-151.0,0.00016438,2]
[404639248,1770369043596,-151.0,0.00016438,2]
[404639249,1770369043605,-152.441832,0.00016438,2]
[404639250,1770369043615,-370.903275,0.00016438,2]
[404639251,1770369043625,-370.903275,0.00016438,2]
[404639252,1770369043635,-370.903275,0.00016438,2]
[404639253,1770369043645,-370.903275,0.00016438,2]
[404639254,1770369043655,-370.903275,0.00016438,2]
[404639255,1770369043665,-370.903275,0.00016438,2]
[404639256,1770369043677,-370.903275,0.00016438,2]
[404639257,1770369043687,-370.903275,0.00016438,2]
[404639258,1770369043697,-370.903275,0.00016438,2]
[404639259,1770369043707,-370.903275,0.00016438,2]
[404639260,1770369043717,-370.903275,0.00016438,2]
[404639261,1770369043728,-370.903275,0.00016438,2]
[404639262,1770369043738,-370.903275,0.00016438,2]
[404639263,1770369043748,-370.903275,0.00016438,2]
[404639264,1770369043758,-370.903275,0.00016438,2]
[404639265,1770369043768,-370.903275,0.00016438,2]
[404639266,1770369043780,-370.903275,0.00016438,2]
[404639267,1770369043790,-370.903275,0.00016438,2]
[404639268,1770369043802,-370.903275,0.00016438,2]
[404639269,1770369043813,-370.903281,0.00016438,2]
[404639270,1770369043825,-964.011817,0.00016438,2]
[404639271,1770369043835,-964.011817,0.00016438,2]
[404639272,1770369043845,-964.011817,0.00016438,2]
[404639273,1770369043854,-964.011817,0.00016438,2]
[404639274,1770369043864,-964.011817,0.00016438,2]
[404639275,1770369043874,-964.011817,0.00016438,2]
[404639276,1770369043885,-964.011817,0.00016438,2]
[404639277,1770369043903,-964.011817,0.00016438,2]
[404639278,1770369043916,-964.011817,0.00016438,2]
[404639279,1770369043927,-964.011817,0.00016438,2]
[404639280,1770369043936,-964.011817,0.00016438,2]
[404639281,1770369043947,-964.011817,0.00016438,2]
[404639282,1770369043956,-964.011817,0.00016438,2]
[404639283,1770369043967,-964.011817,0.00016438,2]
[404639284,1770369043976,-964.011817,0.00016438,2]
[404639285,1770369043986,-964.011817,0.00016438,2]
[404639286,1770369043996,-964.011817,0.00016438,2]
[404639287,1770369044006,-964.011817,0.00016438,2]
[404639288,1770369044015,-964.011817,0.00016438,2]
[404639289,1770369044026,-964.01182,0.00016438,2]
[404639290,1770369044036,-636.0,0.00016457,2]
[404639291,1770369044045,-715.0,0.00016457,2]
[404639292,1770369044055,-692.0,0.00016457,2]
[404639293,1770369044064,-422.0,0.00016457,2]
[404639294,1770369044077,-840.0,0.00016457,2]
[404639295,1770369044086,-1129.0,0.00016457,2]
[404639296,1770369044095,-547.0,0.00016457,2]
[404639297,1770369044104,-649.0,0.00016457,2]
[404639298,1770369044114,-754.0,0.00016457,2]
[404639299,1770369044123,-15158.97790679,0.00016471,2]
[404639300,1770369044132,-501.49267826,0.00016473,2]
[404639301,1770369044142,-348.83647081,0.00016473,2]
[404639302,1770369044152,-636.0,0.00016511,2]
[404639303,1770369044162,-715.0,0.00016511,2]
[404639304,1770369044171,-692.0,0.00016511,2]
[404639305,1770369044180,-422.0,0.00016511,2]
[404639306,1770369044189,-840.0,0.00016511,2]
[404639307,1770369044198,-1129.0,0.00016511,2]
[404639308,1770369044208,-547.0,0.00016511,2]
[404639309,1770369044217,-649.0,0.00016511,2]
[404639310,1770369044227,-754.0,0.00016511,2]
[404639311,1770369044236,-715.0,0.00016566,2]
[404639312,1770369044246,-636.0,0.00016566,2]
[404639313,1770369044255,-692.0,0.00016566,2]
[404639314,1770369044265,-422.0,0.00016566,2]
[404639315,1770369044274,-840.0,0.00016566,2]
[404639316,1770369044283,-1129.0,0.00016566,2]
[404639317,1770369044292,-547.0,0.00016566,2]
[404639318,1770369044302,-649.0,0.00016566,2]
[404639319,1770369044311,-754.0,0.00016566,2]
[404639320,1770369044324,-1000.0,0.00016583,2]
[404639321,1770369044334,-715.0,0.00016621,2]
[404639322,1770369044344,-636.0,0.00016621,2]
[404639323,1770369044353,-692.0,0.00016621,2]
[404639324,1770369044363,-422.0,0.00016621,2]
[404639325,1770369044372,-840.0,0.00016621,2]
[404639326,1770369044382,-1129.0,0.00016621,2]
[404639327,1770369044391,-547.0,0.00016621,2]
[404639328,1770369044400,-649.0,0.00016621,2]
[404639329,1770369044409,-754.0,0.00016621,2]
[404639330,1770369044419,-760.74176872,0.00016657,2]
[404639331,1770369044428,-427.995377,0.00016671,2]
[404639332,1770369044437,-427.995377,0.00016671,2]
[404639334,1770369044446,-427.995377,0.00016671,2]
[404639336,1770369044455,-427.995377,0.00016671,2]
[404639337,1770369044465,-151.0,0.00016671,2]
[404639338,1770369044474,-151.0,0.00016671,2]
[404639339,1770369044483,-151.0,0.00016671,2]
[404639340,1770369044492,-715.0,0.00016676,2]
[404639341,1770369044501,-636.0,0.00016676,2]
[404639342,1770369044511,-692.0,0.00016676,2]
[404639343,1770369044519,-422.0,0.00016676,2]
[404639344,1770369044528,-840.0,0.00016676,2]
[404639345,1770369044538,-1129.0,0.00016676,2]
[404639346,1770369044548,-547.0,0.00016676,2]
[404639347,1770369044557,-649.0,0.00016676,2]
[404639348,1770369044570,-754.0,0.00016676,2]
[404639349,1770369044579,-3723.88607927,0.0001669,2]
[404639350,1770369044590,-715.0,0.0001673,2]
[404639351,1770369044600,-636.0,0.0001673,2]
[404639352,1770369044611,-692.0,0.0001673,2]
[404639353,1770369044620,-422.0,0.0001673,2]
[404639354,1770369044630,-840.0,0.0001673,2]
[404639355,1770369044639,-1129.0,0.0001673,2]
[404639356,1770369044649,-547.0,0.0001673,2]
[404639357,1770369044659,-649.0,0.0001673,2]
[404639358,1770369044668,-754.0,0.0001673,2]
[404639359,1770369044678,-5089.9435797,0.00016763,2]
[404639360,1770369044688,-723.47692943,0.00016785,2]
[404639361,1770369044698,-709.0771888,0.00016785,2]
[404639362,1770369044708,-654.30370986,0.00016785,2]
[404639363,1770369044718,-442.46949041,0.00016785,2]
[404639364,1770369044730,-857.35138215,0.00016785,2]
[404639365,1770369044740,-1139.09552745,0.00016785,2]
[404639366,1770369044750,-403.55875134,0.00016785,2]
[404639367,1770369044759,-657.05274747,0.00016785,2]
[404639368,1770369044769,-763.0,0.00016785,2]
[404639369,1770369044778,-530.66,0.00016919,2]
[404639370,1770369044787,-728.120031,0.00016986,2]
[404639371,1770369044797,-728.120031,0.00016986,2]
[404639372,1770369044806,-728.120031,0.00016986,2]
[404639373,1770369044816,-728.120031,0.00016986,2]
[404639374,1770369044826,-728.120031,0.00016986,2]
[404639375,1770369044835,-728.120031,0.00016986,2]
[404639376,1770369044845,-728.120031,0.00016986,2]
[404639377,1770369044854,-728.120031,0.00016986,2]
[404639378,1770369044864,-728.120031,0.00016986,2]
[404639379,1770369044873,-728.120031,0.00016986,2]
[404639380,1770369044882,-728.120031,0.00016986,2]
[404639381,1770369044891,-728.120031,0.00016986,2]
[404639382,1770369044901,-728.120031,0.00016986,2]
[404639383,1770369044910,-728.120031,0.00016986,2]
[404639384,1770369044920,-728.120031,0.00016986,2]
[404639385,1770369044930,-728.120031,0.00016986,2]
[404639386,1770369044939,-728.120031,0.00016986,2]
[404639387,1770369044949,-728.120031,0.00016986,2]
[404639388,1770369044959,-728.120031,0.00016986,2]
[404639389,1770369044969,-728.120031,0.00016986,2]
[404639390,1770369044978,-193.0,0.00017,2]
[404639391,1770369044987,-396.9087173,0.00017784,2]
[404639392,1770369044998,-500.0,0.00017808,2]
[404639393,1770369045007,-500.0,0.00017808,2]
[404639394,1770369045016,-500.0,0.00017808,2]
[404639395,1770369045026,-500.0,0.00017808,2]
[404639396,1770369045036,-500.0,0.00017808,2]
[404639397,1770369045045,-500.0,0.00017808,2]
[404639398,1770369045055,-500.0,0.00017808,2]
[404639399,1770369045064,-500.0,0.00017808,2]
[404639400,1770369045075,-500.0,0.00017808,2]
[404639401,1770369045085,-500.0,0.00017808,2]
[404639402,1770369045094,-500.0,0.00017808,2]
[404639403,1770369045104,-500.0,0.00017808,2]
[404639404,1770369045113,-500.0,0.00017808,2]
[404639405,1770369045122,-500.0,0.00017808,2]
[404639406,1770369045132,-500.0,0.00017808,2]
[404639407,1770369045141,-500.0,0.00017808,2]
[404639408,1770369045194,-500.0,0.00017808,2]
[404639409,1770369045204,-500.0,0.00017808,2]
[404639410,1770369045213,-500.0,0.00017808,2]
[404639411,1770369045223,-500.0,0.00017808,2]
[404639412,1770369045232,-500.0,0.00017808,2]
[404639413,1770369045241,-500.0,0.00017808,2]
[404639414,1770369045250,-500.0,0.00017808,2]
[404639415,1770369045259,-500.0,0.00017808,2]
[404639416,1770369045269,-500.0,0.00017808,2]
[404639417,1770369045278,-500.0,0.00017808,2]
[404639418,1770369045287,-500.0,0.00017808,2]
[404639419,1770369045296,-500.0,0.00017808,2]
[404639420,1770369045305,-500.0,0.00017808,2]
[404639421,1770369045314,-500.0,0.00017808,2]
[404639422,1770369045324,-244.87782425,0.00017808,2]
[404639423,1770369045333,-500.0,0.00017808,2]
[404639424,1770369045342,-500.0,0.00017808,2]
[404639425,1770369045352,-500.0,0.00017808,2]
[404639426,1770369045361,-500.0,0.00017808,2]
[404639427,1770369045370,-500.0,0.00017808,2]
[404639428,1770369045379,-500.0,0.00017808,2]
[404639429,1770369045388,-500.0,0.00017808,2]
[404639430,1770369045398,-214.73,0.00017899,2]
[404639431,1770369045407,-500.0,0.00017973,2]
[404639432,1770369045416,-2514.5805028,0.0001799,3]
[404639433,1770369045426,-168.3,0.00018,2]
[404639434,1770369045435,-200.0,0.00018,2]
[404639435,1770369045445,-456.0,0.00018,2]
[404639436,1770369045454,-372.0,0.00018,2]
[404639437,1770369045464,-1000.0,0.0001809,2]
[404639438,1770369045474,-760.74176872,0.00018237,2]
[404639439,1770369045484,-200.14989585,0.00018319,2]
[404639440,1770369045493,-15158.97790679,0.00018378,2]
[404639441,1770369045502,-1000.0,0.00018521,2]
[404639442,1770369045512,-190.233766,0.00018596,7]
[404639443,1770369045521,-917.0,0.00019165,2]
[404639444,1770369045531,-1205.0,0.00019165,2]
[404639445,1770369045540,-151.0,0.00019178,2]
[404639446,1770369045549,-151.0,0.00019178,2]
[404639447,1770369045559,-151.0,0.00019178,2]
[404639448,1770369045568,-151.0,0.00019178,2]
[404639449,1770369045578,-151.0,0.00019178,2]
[404639450,1770369045588,-151.0,0.00019178,2]
[404639451,1770369045598,-151.0,0.00019178,2]
[404639452,1770369045607,-151.0,0.00019178,2]
[404639453,1770369045616,-151.0,0.00019178,2]
[404639454,1770369045627,-151.0,0.00019178,2]
[404639455,1770369045636,-254.975874,0.00019178,2]
[404639456,1770369045646,-178.9296771,0.00019274,2]
[404639457,1770369045655,-3253.0,0.00019404,2]
[404639458,1770369045664,-6582.0,0.00019404,2]
[404639459,1770369045674,-412.0,0.00019404,2]
[404639460,1770369045683,-260.91984588,0.00019483,2]
[404639461,1770369045692,-258.25598792,0.00019522,2]
[404639462,1770369045702,-249.83379128,0.00019737,2]
[404639463,1770369045711,-297.67,0.00019742,2]
[404639464,1770369045720,-760.74176872,0.00019816,2]
[404639465,1770369045732,-504.7,0.000199,3]
[404639466,1770369045742,-200.0,0.0002,2]
[404639467,1770369045751,-1316.69,0.00020048,2]
[404639468,1770369045761,-174.86813733,0.00020186,2]
[404639469,1770369045770,-15158.97790679,0.00020286,2]
[404639470,1770369045780,-3723.88607927,0.00020725,2]
[404639471,1770369045789,-427.995377,0.00020778,2]
[404639472,1770369045799,-427.995377,0.00020778,2]
[404639473,1770369045809,-427.995377,0.00020778,2]
[404639474,1770369045819,-427.995378,0.00020778,2]
[404639475,1770369045828,-151.0,0.00020778,2]
[404639476,1770369045838,-151.0,0.00020778,2]
[404639477,1770369045847,-212.274383,0.00020778,2]
[404639478,1770369045856,-214.73,0.00021278,2]
[404639479,1770369045865,-760.74176872,0.00021396,2]
[404639480,1770369045875,-3482.0,0.00021808,2]
[404639481,1770369045884,-1410.0,0.00021808,2]
[404639482,1770369045893,-1335.0,0.00021808,2]
[404639483,1770369045903,-616.0,0.00021808,2]
[404639484,1770369045912,-150.0,0.00021808,2]
[404639485,1770369045921,-1271.0,0.00021808,2]
[404639486,1770369045930,-5000.0,0.00021918,2]
[404639487,1770369045939,-3037.75,0.00021918,2]
[404639488,1770369045949,-500.0,0.00021918,2]
[404639489,1770369045958,-500.0,0.00021973,2]
[404639490,1770369045968,-500.0,0.00021999,2]
[404639491,1770369045978,-692.04354688,0.00021999,2]
[404639492,1770369045988,-393.54718645,0.00022,5]
[404639493,1770369045997,-500.0,0.00022028,2]
[404639494,1770369046006,-500.0,0.00022082,2]
[404639495,1770369046015,-500.0,0.00022137,2]
[404639496,1770369046024,-500.0,0.00022192,2]
[404639497,1770369046033,-15158.97790679,0.00022194,2]
[404639498,1770369046043,-500.0,0.00022247,2]
[404639499,1770369046051,-500.0,0.00022302,2]
[404639500,1770369046061,-500.0,0.00022356,2]
[404639501,1770369046071,-6582.0,0.00022404,2]
[404639502,1770369046080,-263.906,0.00022404,2]